Cogmind - Beta 12 @@@ ROGUE MODE // 2024.02.22 @ 17:29:02 Player: monistgf Result: Self-destructed Performance ------------- Evolutions (8) 4000 Regions Visited (14) 2800 Robots Destroyed (208) 1040 Value Destroyed (9182) 9182 Prototype IDs (9) 180 Alien Tech Used (0) 0 Bonus (2779) 2779 TOTAL SCORE: 19981 Bonus ------- High Alert Combat Kills 1031 Follower Combat Kills 1382 Entered DSFs 500 Network Hubs Disabled 200 Friendly Fire -334 Cogmind --------- Core Integrity 1341/1450 Matter 267/300 Energy 100/100 System Corruption 5% Temperature Warm (176) Movement Walking (120) Location -2/Research Parts ------- > --- POWER (2) -------- (None) > --- PROPULSION (5) --- Armored Leg Armored Leg Centrium Leg > --- UTILITY (12) ----- Advanced Heat Sink Advanced Heat Sink Large Storage Unit Advanced Signal Interpreter Improved Targeting Computer Advanced Targeting Computer Advanced Targeting Computer Advanced Target Analyzer Antimissile System Improved Hacking Suite > --- WEAPON (4) ------- (None) > --- INVENTORY (15) --- Light Antimatter Reactor Flexi-carbon Leg Flexi-carbon Leg Improved VSS Leg Improved VSS Leg Centrium Wheel Advanced Heat Sink Large Storage Unit Matter Compressor (250) Improved Dynamic Insulation System Tesla Rifle Variable Charge Gun Long-range Proton Cannon Great Maul Peak State ------------ > --- POWER ------------ Light Antimatter Reactor Light Quantum Reactor > --- PROPULSION ------- Armored Leg Armored Leg Armored Leg Biometal Leg Centrium Leg > --- UTILITY ---------- Advanced Heat Sink Advanced Heat Sink Large Storage Unit Advanced Signal Interpreter Improved Targeting Computer Advanced Targeting Computer Advanced Targeting Computer Advanced Target Analyzer Recoil Nullifier Antimissile System Improved Hacking Suite > --- WEAPON ----------- Gamma Rifle Gamma Rifle Quantum Rifle Enhanced Quantum Rifle > --- INVENTORY -------- Light Antimatter Reactor Flexi-carbon Leg Flexi-carbon Leg Improved VSS Leg Improved VSS Leg Centrium Wheel Advanced Heat Sink Large Storage Unit Matter Compressor Improved Dynamic Insulation System Tesla Rifle Gamma Rifle Variable Charge Gun Long-range Proton Cannon Great Maul [Rating: 139] Favorites ----------- Power Light Antimatter Reactor Engine Light Angular Momentum Engine Power Core Light Fission Core Reactor Light Antimatter Reactor Propulsion Armored Leg Treads Armored Treads Leg Armored Leg Wheel Wheel Utility Advanced Targeting Computer Device Advanced Heat Sink Storage Large Storage Unit Processor Advanced Targeting Computer Hackware Improved Hacking Suite Protection Centrium Medium Armor Plating Weapon KE Penetrator Energy Gun Quantum Rifle Energy Cannon Heavy Phase Cannon Ballistic Gun KE Penetrator Ballistic Cannon Mass Driver Impact Weapon Great Maul Build | -11 -10 -9 -8 -7 -7 -6 -5 -5 -5 -5 -5 -4 -3 -2 ------- Run | Jun Mat Mat Mat Fac DSF Fac Fac Ext Cet Arc Hub Fac Res Res Slots Evolved 16 | . . 2 2 2 . 2 2 . . . . 2 2 2 Power 1 | . . . . . . . . . . . . . 1 . Propulsion 3 | . . 1 1 1 . . . . . . . . . . Utility 10 | . . . . 1 . 2 2 . . . . 2 1 2 Weapon 2 | . . 1 1 . . . . . . . . . . . Parts Attached 231 | . 3 8 25 3 5 36 30 30 5 8 18 14 35 11 Power 26 | . 1 . 3 . 1 3 4 4 1 . . 2 6 1 Engine 10 | . 1 . 2 . 1 3 1 2 . . . . . . Core 5 | . . . 1 . . . 3 1 . . . . . . Reactor 11 | . . . . . . . . 1 1 . . 2 6 1 Propulsion 72 | . 1 4 8 1 2 9 5 15 . . 12 5 7 3 Treads 6 | . . . . . . 5 1 . . . . . . . Leg 63 | . 1 4 8 1 2 2 3 15 . . 12 5 7 3 Wheel 3 | . . . . . . 2 1 . . . . . . . Hover . | . . . . . . . . . . . . . . . Flight . | . . . . . . . . . . . . . . . Utility 70 | . 1 . 4 2 1 14 14 5 1 7 4 4 11 2 Device 46 | . 1 . 2 2 1 12 10 4 . 5 2 . 5 2 Storage 4 | . . . 1 . . . 2 . . . . 1 . . Processor 13 | . . . 1 . . 2 2 1 . . 2 . 5 . Hackware 2 | . . . . . . . . . . . . 2 . . Protection 5 | . . . . . . . . . 1 2 . 1 1 . Artifact . | . . . . . . . . . . . . . . . Weapon 63 | . . 4 10 . 1 10 7 6 3 1 2 3 11 5 Energy Gun 33 | . . 3 6 . . 6 6 . . 1 . 1 5 5 Energy Cannon 6 | . . . . . 1 1 . 2 . . 1 1 . . Ballistic Gun 18 | . . 1 4 . . 3 . 4 2 . 1 1 2 . Ballistic Cannon 5 | . . . . . . . 1 . 1 . . . 3 . Launcher . | . . . . . . . . . . . . . . . Special Weapon . | . . . . . . . . . . . . . . . Impact Weapon 1 | . . . . . . . . . . . . . 1 . Slashing Weapon . | . . . . . . . . . . . . . . . Piercing Weapon . | . . . . . . . . . . . . . . . Special Melee Weapon . | . . . . . . . . . . . . . . . Unidentified Prototypes 7 | . . . . . . 1 1 . 2 . . . 3 . Parts Lost 68 | . . . 6 . 3 19 2 7 . . 3 6 13 9 Power 11 | . . . 1 . 1 2 . 1 . . . 2 4 . Propulsion 14 | . . . 1 . 2 7 1 . . . . . 2 1 Utility 19 | . . . . . . 4 1 4 . . 2 2 4 2 Weapon 24 | . . . 4 . . 6 . 2 . . 1 2 3 6 Highest Loss Streak 8 | . . . 4 . 3 8 1 2 . . 1 3 4 6 To Critical Strikes 1 | . . . . . . . . . . . . . 1 . Average Slot Usage (%) 96 | . 99 100 97 100 97 96 98 95 92 99 99 97 89 93 Engine 2 | . 14 11 4 . 4 5 2 3 . . . . . . Core 1 | . . . 4 7 1 . 2 1 . . . . . . Reactor 2 | . . . . . . . . . 5 5 5 4 7 8 Treads 4 | . . . . . . 13 10 . . . . . . . Leg 21 | . 28 33 36 38 36 15 9 25 29 29 29 26 22 20 Wheel 1 | . . . . . . 3 5 1 . . . . . . Device 16 | . 13 11 8 15 15 19 22 18 11 19 15 10 11 14 Storage 5 | . 14 11 9 7 7 6 5 5 5 5 5 5 4 4 Processor 10 | . . . . . . 4 11 12 11 11 12 15 19 21 Hackware 1 | . . . . . . . . . . . . 8 4 4 Protection 1 | . . . . . . . . . 3 2 5 4 2 2 Energy Gun 10 | . 14 22 17 15 7 11 16 5 . 1 5 4 5 14 Energy Cannon 2 | . . . . . 6 4 . 4 5 5 4 4 . . Ballistic Gun 7 | . 14 11 16 15 15 8 5 7 11 11 11 10 2 . Ballistic Cannon 1 | . . . . . . . . 2 5 3 . . 5 2 Naked Turns . | . . . . . . . . . . . . . . . Heaviest Build 85 | 11 14 19 30 31 36 44 61 67 80 81 78 76 85 83 Greatest Support 106 | 20 20 30 50 60 60 64 42 81 81 81 91 88 96 106 Greatest Overweight (x) 4 | . . . . . 1 4 4 3 . . . . 1 . Average Overweight (x) . | . . . . . . 1 3 . . . . . . . Largest Inventory Capacity 15 | . 8 8 10 10 10 10 15 15 15 15 15 15 15 15 Average Capacity 12 | . 8 8 9 10 10 10 10 15 15 15 15 15 15 15 Most Carried 15 | . 8 8 10 9 10 10 14 15 15 15 15 15 15 15 Average Carried 11 | . 6 7 9 7 7 8 10 14 14 14 14 14 14 14 Final Capacity 15 | 8 8 8 10 10 10 10 15 15 15 15 15 15 15 15 Final Carried 15 | 6 7 8 10 7 8 10 14 15 15 15 13 12 14 14 Class Distribution -------------------- 68% | Scavenger-Gunner 9% | Gunner 5% | Skirmisher 5% | Scavenger-Skirmisher 3% | Commander-Gunner Dominant Class ---------------- Mutant | -10/Materials Skirmisher | -9/Materials Scavenger-Gunner | -8/Materials Scavenger-Skirmisher | -7/Factory Scavenger-Skirmisher | -7/DSF Scavenger-Gunner | -6/Factory Scavenger-Gunner | -5/Factory Scavenger-Gunner | -5/Extension Scavenger-Gunner | -5/Cetus Scavenger-Gunner | -5/Archives Scavenger-Gunner | -5/Hub_04(d) Scavenger-Gunner | -4/Factory Scavenger-Gunner | -3/Research Scavenger-Gunner | -2/Research Resources | -11 -10 -9 -8 -7 -7 -6 -5 -5 -5 -5 -5 -4 -3 -2 ----------- Run | Jun Mat Mat Mat Fac DSF Fac Fac Ext Cet Arc Hub Fac Res Res Matter Collected 6013 | 200 42 94 402 . 2 1089 551 752 183 333 646 368 1278 73 Remotely . | . . . . . . . . . . . . . . . Salvage Created 10083 | . 124 265 962 . . 1351 1165 859 . 557 1875 1073 1633 219 Parts 463 | . 6 13 49 . . 48 51 42 . 28 96 57 65 8 Haulers Intercepted 2 | . . . . . . . . . . . 1 1 . . Recyclers Shooed 10 | . . . 1 . . 2 3 . . . . 1 3 . Parts Field Recycled . | . . . . . . . . . . . . . . . Retrieved Matter . | . . . . . . . . . . . . . . . Parts Self-Destructed . | . . . . . . . . . . . . . . . Prevented . | . . . . . . . . . . . . . . . Kills | -11 -10 -9 -8 -7 -7 -6 -5 -5 -5 -5 -5 -4 -3 -2 ------- Run | Jun Mat Mat Mat Fac DSF Fac Fac Ext Cet Arc Hub Fac Res Res Combat Hostiles Destroyed 148 | . 3 5 21 . . 24 22 11 . 3 23 10 23 3 Guns 107 | . 3 5 21 . . 14 20 8 . 1 13 8 12 2 Cannons 35 | . . . . . . 8 1 3 . 2 9 1 11 . AOE 1 | . . . . . . 1 . . . . . . . . Classes Destroyed 15 | . 1 2 4 . . 6 . . . 1 1 . . . Worker 15 | . . . . . . 3 1 . . . 2 8 1 . Builder 11 | . . . 1 . . 1 . 2 . . 2 5 . . Tunneler 1 | . . . . . . 1 . . . . . . . . Hauler 2 | . . . . . . . . . . . 1 1 . . Recycler 8 | . . . . . . 1 . 2 . . 2 1 2 . Operator 13 | . . . . . . . . . . 9 1 1 2 . Watcher 9 | . . 1 . . . . 1 . . . 2 1 3 1 Swarmer 24 | . . . 3 . . 5 4 3 . . 3 . 4 2 Grunt 60 | . 3 4 12 . . 9 9 6 . . 6 4 7 . Brawler 5 | . . 1 1 . . 1 . . . . 1 1 . . Duelist 3 | . . . 1 . . 1 . . . . 1 . . . Sentry 21 | . . . 4 . . 3 1 2 . 3 3 1 3 1 Hunter 13 | . . . . . . 2 . . . . 5 2 4 . Programmer 21 | . . . . . . 2 8 . . . 4 2 5 . Heavy 1 | . . . . . . 1 . . . . . . . . Thug 1 | . . . . . . . . 1 . . . . . . Best Kill Streak 15 | . 3 4 6 . . 5 6 4 . 6 10 15 6 2 Combat Bots Only 6 | . 3 3 6 . . 3 5 3 . 2 6 4 6 2 Max Kills in Single Turn 10 | . 1 1 2 . . 2 2 1 . 1 2 10 1 1 Gunslinging 1 | . . . . . . . 1 . . . 1 . . . Exploded 1 | . . . . . . 1 . . . . . . . . Melee . | . . . . . . . . . . . . . . . Uniques/NPCs Destroyed . | . . . . . . . . . . . . . . . Combat | -11 -10 -9 -8 -7 -7 -6 -5 -5 -5 -5 -5 -4 -3 -2 -------- Run | Jun Mat Mat Mat Fac DSF Fac Fac Ext Cet Arc Hub Fac Res Res Damage Taken 14415 | . 98 86 1166 . 319 2752 1561 1064 20 190 1548 1382 2660 1569 Core 1353 | . . 43 191 . . 245 195 58 13 . 137 191 171 109 Absorbed by Shields 263 | . . . . . . 200 . 44 19 . . . . . Redirected to Shielding 112 | . . . . . . . . . . . . . 46 66 Regen/Repaired (Parts) 847 | . . . . . . . 228 . . . . . . 619 Core Remaining (%) 83 | 100 100 89 65 . 100 71 . . . . 59 83 86 . Volleys Fired 428 | . 12 8 56 . . 65 36 52 7 27 59 29 66 11 Largest 4 | . 2 3 4 . . 4 4 4 4 4 4 4 4 4 Hottest 320 | . 70 132 202 . . 286 256 260 215 215 252 252 320 320 Shots Fired 1407 | . 24 24 198 . . 225 145 117 28 82 230 113 181 40 Gun 1096 | . 24 24 198 . . 171 135 57 14 66 177 84 109 37 Cannon 311 | . . . . . . 54 10 60 14 16 53 29 72 3 Launcher . | . . . . . . . . . . . . . . . Special . | . . . . . . . . . . . . . . . Kinetic 692 | . 12 8 105 . . 79 45 74 21 62 118 58 107 3 Thermal 653 | . 12 11 93 . . 138 74 43 7 20 112 55 70 18 Explosive . | . . . . . . . . . . . . . . . Electromagnetic 62 | . . 5 . . . 8 26 . . . . . 4 19 Robot Hit Streak 31 | . 7 10 18 . . 30 23 11 7 17 13 18 31 29 Robot Miss Streak 6 | . 2 1 4 . . 6 3 3 5 2 2 4 3 1 Penetration Max 1 | . . . . . . 1 1 1 . 1 1 1 1 . Secondary Targets 13 | . . 1 2 . . 1 4 . . . 3 . 2 . Max Gunslinging Chain 2 | . . 1 1 . . 1 1 . . . 2 . 1 . Shots Hit Robots 980 | . 18 17 121 . . 161 110 67 12 59 158 81 143 33 Core Hits 450 | . 6 9 54 . . 68 64 37 4 29 61 38 69 11 Critical Kills 17 | . . . . . . 1 . 2 . . 8 5 1 . Critical Parts Destroyed 15 | . . . . . . 1 . . . 6 4 4 . . Critical Strikes 62 | . . . 10 . . 6 . 2 . 9 13 9 10 3 Burn 13 | . . . 10 . . 3 . . . . . . . . Meltdown 3 | . . . . . . 1 . . . . 1 1 . . Destroy 31 | . . . . . . 1 . 2 . 7 12 8 1 . Blast 12 | . . . . . . . . . . 2 . . 9 1 Corrupt 3 | . . . . . . 1 . . . . . . . 2 Melee Attacks 1 | . . . . . . . . . . . . . 1 . Impact 1 | . . . . . . . . . . . . . 1 . Slashing . | . . . . . . . . . . . . . . . Piercing . | . . . . . . . . . . . . . . . Sneak Attacks . | . . . . . . . . . . . . . . . Combat Hostiles . | . . . . . . . . . . . . . . . Follow-up Attacks . | . . . . . . . . . . . . . . . Damage Inflicted 27053 | . 187 236 1641 . . 3564 2775 1942 367 1827 4944 3475 5202 893 Guns 17752 | . 187 233 1628 . . 2315 2582 1096 119 1358 3470 1556 2381 827 Cannons 7945 | . . . . . . 1060 190 846 248 469 1425 865 2776 66 Explosions 1265 | . . . . . . 172 . . . . 49 1044 . . Melee . | . . . . . . . . . . . . . . . Ramming 91 | . . 3 13 . . 17 3 . . . . 10 45 . Kinetic 11976 | . 73 44 722 . . 996 879 875 253 1359 2115 1078 3516 66 Thermal 14049 | . 114 115 906 . . 2437 1616 1067 114 468 2780 2387 1607 438 Explosive . | . . . . . . . . . . . . . . . Electromagnetic 937 | . . 74 . . . 114 277 . . . 49 . 34 389 Impact . | . . . . . . . . . . . . . . . Slashing . | . . . . . . . . . . . . . . . Piercing . | . . . . . . . . . . . . . . . Highest Corruption 13 | . . . . . . 1 5 9 9 9 5 2 13 5 Average Corruption 4 | . . . . . . 1 1 5 9 5 4 1 6 1 Corruption Purged 9 | . . . . . . . . . . 9 . . . . Corruption Blocked . | . . . . . . . . . . . . . . . Effects 124 | . . . . . . 7 19 32 5 8 2 2 45 4 Message Errors 31 | . . . . . . . 6 8 1 2 . 1 11 2 Matter Fused 32 | . . . . . . 1 4 8 3 3 . . 13 . Heat Flow Errors 10 | . . . . . . . . 3 . 1 . . 6 . Energy Discharges 15 | . . . . . . 2 3 3 . . . . 7 . Parts Rejected 5 | . . . . . . 1 . 2 . . 1 1 . . Data Loss (minor) 16 | . . . . . . 1 2 3 1 2 1 . 5 1 Data Loss (major) 3 | . . . . . . . 1 1 . . . . . 1 Misfires 3 | . . . . . . . 2 1 . . . . . . Alerts 2 | . . . . . . 1 . . . . . . 1 . Weapon Failures 7 | . . . . . . 1 1 3 . . . . 2 . Overload Shots . | . . . . . . . . . . . . . . . Overflow Damage 438 | . . . . . . 15 7 33 30 . 67 196 90 . Projectiles 245 | . . . . . . 15 7 33 30 . 67 3 90 . Explosions 193 | . . . . . . . . . . . . 193 . . Melee . | . . . . . . . . . . . . . . . Knockbacks 33 | . . . . . . . 1 . . . . . 32 . Impact 1 | . . . . . . . . . . . . . 1 . Kinetic 30 | . . . . . . . 1 . . . . . 29 . Secondary 2 | . . . . . . . . . . . . . 2 . Self-Inflicted Damage 107 | . . . . . . . . . . . 107 . . . Shots 1 | . . . . . . . . . . . 1 . . . Rammed 7 | . . . . . . 6 1 . . . . . . . Targets Rammed 22 | . . 1 7 . . 6 1 . . . 1 1 5 . Kicked 15 | . . 1 7 . . . . . . . 1 1 5 . Crushed . | . . . . . . . . . . . . . . . Highest Temperature 392 | . 234 225 354 . . 358 266 392 176 229 336 111 318 237 Average Temperature 89 | . 117 89 101 . . 88 72 102 80 51 114 48 81 109 Received Heat Transfer 2319 | . 54 48 522 . . 430 423 201 . . 252 78 275 36 Effects 9 | . 1 . 3 . . 5 . . . . . . . . Energy Bleed 2 | . 1 . 1 . . . . . . . . . . . Interference 3 | . . . . . . 3 . . . . . . . . Matter Decay 1 | . . . . . . 1 . . . . . . . . Short Circuit 1 | . . . 1 . . . . . . . . . . . Damage (minor) 2 | . . . 1 . . 1 . . . . . . . . Siege Activations . | . . . . . . . . . . . . . . . Robots Corrupted 1 | . . . . . . . . . . . . . . 1 Combat Hostiles 1 | . . . . . . . . . . . . . . 1 Parts Fried 4 | . . . . . . . . . . . . . . 4 Impact Corruptions . | . . . . . . . . . . . . . . . Robots Melted 4 | . . . . . . 1 1 . . . 1 1 . . Combat Hostiles 4 | . . . . . . 1 1 . . . 1 1 . . Parts Melted 41 | . 1 . 5 . . 13 9 2 . 2 7 2 . . Heat Transferred 21737 | . 333 296 3034 . . 4838 2937 1705 111 555 3182 2230 1998 518 Parts Sabotaged 4 | . . . . . . . . . . . . . . 4 Parts Stolen . | . . . . . . . . . . . . . . . Parts Stripped . | . . . . . . . . . . . . . . . Power Chain Reactions 1 | . . . . . . 1 . . . . . . . . Missiles Intercepted . | . . . . . . . . . . . . . . . Alert | -11 -10 -9 -8 -7 -7 -6 -5 -5 -5 -5 -5 -4 -3 -2 ------- Run | Jun Mat Mat Mat Fac DSF Fac Fac Ext Cet Arc Hub Fac Res Res Peak Influence 1153 | . 70 208 495 224 171 277 631 1153 886 531 1052 711 707 558 Initial 645 | . . 29 87 224 156 89 102 308 645 354 115 460 327 383 Average 342 | . 18 137 330 224 149 178 124 609 804 458 501 398 458 474 Maximum Alert Level 4 | . . 1 2 1 . 1 2 4 3 2 3 3 3 2 Low Security (%) 35 | . 100 80 5 . 100 63 85 . . . 11 25 3 . Level 1 27 | . . 19 60 100 . 36 5 42 . 12 17 22 43 23 Level 2 27 | . . . 34 . . . 8 15 13 87 42 51 48 76 Level 3 8 | . . . . . . . . 31 86 . 27 1 4 . Level 4 1 | . . . . . . . . 9 . . . . . . Level 5 . | . . . . . . . . . . . . . . . High Security . | . . . . . . . . . . . . . . . Max Security . | . . . . . . . . . . . . . . . Squads Dispatched 41 | . 1 1 2 . 1 7 10 3 . . 10 1 5 . Investigation 5 | . 1 . 1 . . . 2 1 . . . . . . Extermination 10 | . . . . . . 1 4 . . . 2 1 2 . Reinforcement 11 | . . 1 1 . 1 3 1 . . . 2 . 2 . Assault 3 | . . . . . . . . 2 . . . . 1 . Garrison 12 | . . . . . . 3 3 . . . 6 . . . Intercept . | . . . . . . . . . . . . . . . Searches Triggered . | . . . . . . . . . . . . . . . Construction Impeded 1 | . . . . . . . . . . . 1 . . . Haulers Reinforced 2 | . . . . . . . . . . . 1 . 1 . Active Scanning Responses . | . . . . . . . . . . . . . . . Cargo Convoy Interrupts 1 | . . . . . . . . . . . . . . 1 Stealth | -11 -10 -9 -8 -7 -7 -6 -5 -5 -5 -5 -5 -4 -3 -2 --------- Run | Jun Mat Mat Mat Fac DSF Fac Fac Ext Cet Arc Hub Fac Res Res Distress Signals 12 | . . 1 3 . . 2 . 1 1 . 1 2 1 . Communications Jammed . | . . . . . . . . . . . . . . . Distress Signals . | . . . . . . . . . . . . . . . Times Spotted 278 | . 3 8 30 . . 33 38 35 6 14 30 18 42 21 Peak Tracking Total 11 | . 3 4 8 . 2 5 11 10 5 2 5 6 10 11 Tactical Retreats 27 | . . . 2 . 2 2 11 . . . . 2 6 2 Traps | -11 -10 -9 -8 -7 -7 -6 -5 -5 -5 -5 -5 -4 -3 -2 ------- Run | Jun Mat Mat Mat Fac DSF Fac Fac Ext Cet Arc Hub Fac Res Res Traps Triggered 7 | . 1 . 2 . . . 1 1 . . . . 1 1 Indirectly . | . . . . . . . . . . . . . . . Trap Hack Attempts . | . . . . . . . . . . . . . . . Triggered . | . . . . . . . . . . . . . . . Disarmed . | . . . . . . . . . . . . . . . Reprogrammed . | . . . . . . . . . . . . . . . Reused . | . . . . . . . . . . . . . . . Traps Extracted . | . . . . . . . . . . . . . . . Installed . | . . . . . . . . . . . . . . . Triggered . | . . . . . . . . . . . . . . . Machines | -11 -10 -9 -8 -7 -7 -6 -5 -5 -5 -5 -5 -4 -3 -2 ---------- Run | Jun Mat Mat Mat Fac DSF Fac Fac Ext Cet Arc Hub Fac Res Res Machines Disabled 40 | . . . . . . . 1 1 5 3 15 13 2 . Max in Single Turn 12 | . . . . . . . 1 . 2 1 8 12 1 . Garrison Access 1 | . . . 1 . . . . . . . . . . . Network Hub 1 | . . . . . . . . . . . 1 . . . Energy Cycler 1 | . . . . . . . . 1 . . . . . . Machines Repaired . | . . . . . . . . . . . . . . . Machines Sabotaged . | . . . . . . . . . . . . . . . Overloaded Fab Kills . | . . . . . . . . . . . . . . . Hacking | -11 -10 -9 -8 -7 -7 -6 -5 -5 -5 -5 -5 -4 -3 -2 --------- Run | Jun Mat Mat Mat Fac DSF Fac Fac Ext Cet Arc Hub Fac Res Res Machines Accessed 30 | . . 1 2 1 . 2 6 8 1 . 2 2 3 2 Terminals 20 | . . 1 1 1 . 1 2 8 1 . 1 2 2 . Fabricators 3 | . . . . . . 1 1 . . . . . 1 . Repair Stations 4 | . . . . . . . 2 . . . . . . 2 Recycling Units . | . . . . . . . . . . . . . . . Scanalyzers . | . . . . . . . . . . . . . . . Garrison Access 3 | . . . 1 . . . 1 . . . 1 . . . Total Hacks 81 | . . 3 5 1 . 3 17 18 2 . 3 9 7 13 Successful 32 | . . 1 2 1 . 2 8 6 . . . 5 1 6 Failed 49 | . . 2 3 . . 1 9 12 2 . 3 4 6 7 Catastrophic 16 | . . . 2 . . . 3 3 2 . 2 1 3 . Database Lockouts . | . . . . . . . . . . . . . . . Manual 19 | . . 3 . . . 2 3 . 1 . 2 7 1 . Terminals 48 | . . 3 2 1 . 2 3 18 2 . 2 9 6 . Fabricators 5 | . . . . . . 1 3 . . . . . 1 . Repair Stations 22 | . . . . . . . 9 . . . . . . 13 Recycling Units . | . . . . . . . . . . . . . . . Scanalyzers . | . . . . . . . . . . . . . . . Garrison Access 6 | . . . 3 . . . 2 . . . 1 . . . Terminal Hacks 15 | . . 1 1 1 . . . 6 . . . 5 1 . Robot Analysis 1 | . . 1 . . . . . . . . . . . . Prototype ID Bank 1 | . . . . . . . . . . . . 1 . . Open Door 6 | . . . . . . . . 6 . . . . . . Open DSF 1 | . . . . 1 . . . . . . . . . . Alert Level 2 | . . . . . . . . . . . . 1 1 . Unreport Threat 2 | . . . . . . . . . . . . 2 . . Locate Traps 2 | . . . 1 . . . . . . . . 1 . . Fabricator Hacks 2 | . . . . . . 1 1 . . . . . . . Network Status 2 | . . . . . . 1 1 . . . . . . . Repair Station Hacks 13 | . . . . . . . 7 . . . . . . 6 Scan Component 7 | . . . . . . . 4 . . . . . . 3 Repair 6 | . . . . . . . 3 . . . . . . 3 Recycling Unit Hacks . | . . . . . . . . . . . . . . . Scanalyzer . | . . . . . . . . . . . . . . . Garrison Access Hacks 1 | . . . 1 . . . . . . . . . . . Seal Access 1 | . . . 1 . . . . . . . . . . . Unauthorized Hacks 1 | . . . . . . 1 . . . . . . . . Terminals 1 | . . . . . . 1 . . . . . . . . Botnet 1 | . . . . . . 1 . . . . . . . . Fabricators . | . . . . . . . . . . . . . . . Repair Stations . | . . . . . . . . . . . . . . . Recycling Units . | . . . . . . . . . . . . . . . Scanalyzers . | . . . . . . . . . . . . . . . Garrison Access . | . . . . . . . . . . . . . . . Data Cores Recovered 3 | . . . . . . . . . . . . 1 2 . Used 1 | . . . . . . . . . . . . 1 . . Hacking Detections 25 | . . 1 2 . . 1 5 5 2 . 2 2 3 2 Full Trace Events 4 | . . . 1 . . . 2 1 . . . . . . Feedback Events . | . . . . . . . . . . . . . . . Feedback Blocked . | . . . . . . . . . . . . . . . Robot Schematics Acquired . | . . . . . . . . . . . . . . . Robots Built . | . . . . . . . . . . . . . . . Authchips . | . . . . . . . . . . . . . . . Time . | . . . . . . . . . . . . . . . Total Robot Build Rating . | . . . . . . . . . . . . . . . Part Schematics Acquired . | . . . . . . . . . . . . . . . Parts Built . | . . . . . . . . . . . . . . . Authchips . | . . . . . . . . . . . . . . . Time . | . . . . . . . . . . . . . . . Total Part Build Rating . | . . . . . . . . . . . . . . . Parts Repaired 6 | . . . . . . . 3 . . . . . . 3 Time 218 | . . . . . . . 143 . . . . . . 75 Parts Recycled . | . . . . . . . . . . . . . . . Recycled Matter . | . . . . . . . . . . . . . . . Retrieved Matter . | . . . . . . . . . . . . . . . Retrieved Components . | . . . . . . . . . . . . . . . Parts Scanalyzed . | . . . . . . . . . . . . . . . Part Schematics Acquired . | . . . . . . . . . . . . . . . Parts Damaged . | . . . . . . . . . . . . . . . Bothacking | -11 -10 -9 -8 -7 -7 -6 -5 -5 -5 -5 -5 -4 -3 -2 ------------ Run | Jun Mat Mat Mat Fac DSF Fac Fac Ext Cet Arc Hub Fac Res Res Used RIF Installer . | . . . . . . . . . . . . . . . Robots Hacked . | . . . . . . . . . . . . . . . Non-combat . | . . . . . . . . . . . . . . . Combat . | . . . . . . . . . . . . . . . Robot Hacks Applied . | . . . . . . . . . . . . . . . Relay Couplers Released 4 | . . . . . . 4 . . . . . . . . Programmers 4 | . . . . . . 4 . . . . . . . . Fabnet Peak Effective % . | . . . . . . . . . . . . . . . Robots Rewired 13 | . . . . . . 2 . 11 . . . . . . Allies Hacked . | . . . . . . . . . . . . . . . Hacks Repelled . | . . . . . . . . . . . . . . . Allies | -11 -10 -9 -8 -7 -7 -6 -5 -5 -5 -5 -5 -4 -3 -2 -------- Run | Jun Mat Mat Mat Fac DSF Fac Fac Ext Cet Arc Hub Fac Res Res Total Allies 27 | . . . . . . 2 . 25 . . . . . . Largest Group 20 | . . . . . . 2 . 20 7 5 2 . . . Highest-Rated Group 678 | . . . . . . 72 . 678 331 141 73 . . . Highest-Rated Ally 159 | . . . . . . 40 . 159 159 39 39 . . . Total Orders . | . . . . . . . . . . . . . . . Ally Attacks 197 | . . . . . . 5 . 152 26 14 . . . . Total Damage 4933 | . . . . . . 185 . 3901 534 313 . . . . Kills 34 | . . . . . . . . 25 7 2 . . . . Allies Corrupted . | . . . . . . . . . . . . . . . Allies Melted 1 | . . . . . . 1 . . . . . . . . Intel | -11 -10 -9 -8 -7 -7 -6 -5 -5 -5 -5 -5 -4 -3 -2 ------- Run | Jun Mat Mat Mat Fac DSF Fac Fac Ext Cet Arc Hub Fac Res Res Robot Analysis Total 1 | . . 1 . . . . . . . . . . . . Derelict Logs Recovered . | . . . . . . . . . . . . . . . Drone Launches . | . . . . . . . . . . . . . . . Drone Recoveries . | . . . . . . . . . . . . . . . Exploration | -11 -10 -9 -8 -7 -7 -6 -5 -5 -5 -5 -5 -4 -3 -2 ------------- Run | Jun Mat Mat Mat Fac DSF Fac Fac Ext Cet Arc Hub Fac Res Res Turns Passed 9555 | . 151 228 750 56 116 1370 1986 1042 170 432 836 584 1377 457 Spaces Moved 4892 | 1 90 146 381 44 89 679 884 558 106 121 446 310 777 260 Core . | . . . . . . . . . . . . . . . Treads 157 | . . . . . . 100 56 1 . . . . . . Legs 3537 | 1 90 146 381 44 89 285 . 481 106 121 446 310 777 260 Wheels 1198 | . . . . . . 294 828 76 . . . . . . Hover . | . . . . . . . . . . . . . . . Flight . | . . . . . . . . . . . . . . . Fastest Speed 108 | 120 120 120 120 122 120 120 115 120 120 120 108 108 118 118 Average Speed 124 | 120 120 120 121 122 121 129 140 122 120 120 112 119 121 118 Slowest Speed 410 | 120 120 120 122 122 190 260 237 410 120 120 120 120 190 120 Overloaded Moves . | . . . . . . . . . . . . . . . Propulsion Burnouts . | . . . . . . . . . . . . . . . Robots Hopped . | . . . . . . . . . . . . . . . Cave-ins Triggered . | . . . . . . . . . . . . . . . Exploration Rate (%) 33 | 2 26 28 46 2 77 19 26 64 48 80 40 11 26 10 Regions Visited 14 Branch Regions 4 Pre-discovered Areas . | . . . . . . . . . . . . . . . Known Exits Taken 7 | . . . 1 1 . . . 1 1 1 1 . 1 . Unknown Exits Taken 6 | 1 1 1 . . . 1 1 . . . . 1 . . Scrap Searched . | . . . . . . . . . . . . . . . Spaces Dug 9 | . . . . . . . . 8 . . . . 1 . Terrain Destroyed 347 | . . . . . . 11 4 41 . 11 200 55 25 . Melee 1 | . . . . . . . . . . . . . 1 . Projectile 133 | . . . . . . . 4 41 . 11 39 14 24 . AOE 213 | . . . . . . 11 . . . . 161 41 . . Terrain Rammed . | . . . . . . . . . . . . . . . Walls Destroyed . | . . . . . . . . . . . . . . . Machines Disabled . | . . . . . . . . . . . . . . . Actions | -11 -10 -9 -8 -7 -7 -6 -5 -5 -5 -5 -5 -4 -3 -2 --------- Run | Jun Mat Mat Mat Fac DSF Fac Fac Ext Cet Arc Hub Fac Res Res Total 7476 | . 110 183 554 47 96 1019 1550 840 137 368 676 454 1062 380 Wait 1538 | . 5 12 56 . . 203 554 30 13 197 135 90 147 96 Move 4878 | . 89 145 380 43 88 678 883 557 105 120 445 309 776 260 Hop . | . . . . . . . . . . . . . . . Pick Up 86 | . . 3 10 . 3 14 17 9 2 6 2 5 14 1 Fast Attach 70 | . 1 1 6 . . 13 9 6 2 4 3 2 17 6 Attach 58 | . . 2 6 3 3 13 3 6 . 2 2 7 8 3 Detach 16 | . . . 3 1 . 3 . 1 . . 1 1 6 . Swap 103 | . 2 5 13 . 2 10 18 18 3 2 13 5 10 2 Drop 134 | . 1 6 17 . . 10 29 23 5 10 15 5 12 1 Fire 428 | . 12 8 56 . . 65 36 52 7 27 59 29 66 11 Melee 1 | . . . . . . . . . . . . . 1 . Ram . | . . . . . . . . . . . . . . . Kick 15 | . . 1 7 . . . . . . . 1 1 5 . Crush 7 | . . . . . . 6 1 . . . . . . . Escape Stasis 2 | . . . . . . . . 2 . . . . . . Rewire 140 | . . . . . . 4 . 136 . . . . . . Trap . | . . . . . . . . . . . . . . . Miscellaneous . | . . . . . . . . . . . . . . . Route ------- -11/Junkyard -10/Materials -9/Materials -8/Materials -7/Factory -7/DSF -6/Factory (discovered 2 exits: *Fac x2) -5/Factory -5/Extension (discovered 2 exits: *Fac / *Cet) -5/Cetus -5/Archives (discovered 3 exits: *Fac / *Hub x2) -5/Hub_04(d) -4/Factory -3/Research (discovered 2 exits: *Res / [*Qua]) -2/Research History --------- Turn | Location | Event 1 | -11/Junkyard | Discovered new exit (range 0) 1 | -11/Junkyard | Entered Materials 148 | -10/Materials | Discovered new exit (range 4) 152 | -10/Materials | Entered another Materials area 152 | -9/Materials | Evolved 2 slots: Propulsion x1, Weapon x1 362 | -9/Materials | Discovered new exit (range 16) 380 | -9/Materials | Entered another Materials area 380 | -8/Materials | Evolved 2 slots: Propulsion x1, Weapon x1 650 | -8/Materials | Lost 4 parts (1p1n2w) 844 | -8/Materials | Build established: Scavenger-Gunner 1114 | -8/Materials | Discovered new exit (range 9) 1129 | -8/Materials | Identified exit to Factory 1130 | -8/Materials | Entered Factory 1130 | -7/Factory | Evolved 2 slots: Propulsion x1, Utility x1 1186 | -7/Factory | Identified exit to DSF 1186 | -7/Factory | Entered DSF 1221 | -7/DSF | Additional patrols routed to DSF 1248 | -7/DSF | Lost 3 parts (1p2n) 1288 | -7/DSF | Discovered new exit (range 12) 1302 | -7/DSF | Entered Factory 1302 | -6/Factory | Evolved 2 slots: Utility x2 1648 | -6/Factory | Garrison activated, responded to threat 1960 | -6/Factory | Lost 8 parts (1p3n2u2w) 2013 | -6/Factory | Lost 5 parts (1n1u3w) 2427 | -6/Factory | Discovered new exit (range 8) 2575 | -6/Factory | Discovered new exit (range 9) 2672 | -6/Factory | Entered another Factory area 2672 | -5/Factory | Evolved 2 slots: Utility x2 3393 | -5/Factory | Repaired Broken Energy Filter 4157 | -5/Factory | Repaired Energy Filter 4196 | -5/Factory | Repaired Arm. Treads 4286 | -5/Factory | Garrison activated, responded to threat 4416 | -5/Factory | Build established: Gunner 4635 | -5/Factory | Discovered new exit (range 16) 4658 | -5/Factory | Entered Extension 4711 | -5/Extension | Rescued a captive Derelict 4712 | -5/Extension | Rescued a captive Derelict 4983 | -5/Extension | Rescued a captive Derelict 5003 | -5/Extension | Rescued a captive Derelict 5003 | -5/Extension | Rescued a captive Derelict 5026 | -5/Extension | Rescued a captive Derelict 5027 | -5/Extension | Rescued a captive Derelict 5049 | -5/Extension | Rescued a captive Derelict 5267 | -5/Extension | Rescued a captive Derelict 5267 | -5/Extension | Rescued a captive Derelict 5269 | -5/Extension | Rescued a captive Derelict 5275 | -5/Extension | Rescued a captive Derelict 5278 | -5/Extension | Rescued a captive Derelict 5328 | -5/Extension | Rescued A7 5499 | -5/Extension | Energy Cycler disabled 5558 | -5/Extension | First assault squad dispatched 5673 | -5/Extension | Discovered new exit (range 10) 5674 | -5/Extension | Discovered new exit (range 6) 5686 | -5/Extension | Identified exit to Factory 5695 | -5/Extension | Identified exit to Cetus 5700 | -5/Extension | Entered Cetus 5700 | -5/Cetus | Accompanied by 7 allies (A7) 5705 | -5/Cetus | Acquired a Cetus Manufacturing Module code from A7 5719 | -5/Cetus | Spotted Cetus Guard 5719 | -5/Cetus | Spotted Cetus Guard 5719 | -5/Cetus | Allies destroyed Cetus Guard 5721 | -5/Cetus | Build established: Scavenger-Gunner 5721 | -5/Cetus | Spotted Cetus Guard 5722 | -5/Cetus | Spotted Cetus Guard 5723 | -5/Cetus | Allies destroyed Cetus Guard 5728 | -5/Cetus | Allies destroyed Cetus Guard 5732 | -5/Cetus | Allies destroyed Cetus Guard 5786 | -5/Cetus | Cetus Manufacturing Module disabled 5823 | -5/Cetus | Failed to start Cetus Manufacturing Module 5842 | -5/Cetus | Discovered new exit (range 15) 5859 | -5/Cetus | Identified exit to Archives 5870 | -5/Cetus | Entered Archives 5870 | -5/Archives | Accompanied by 6 allies (A7) 5929 | -5/Archives | Discovered new exit (range 16) 5944 | -5/Archives | Discovered new exit (range 16) 6159 | -5/Archives | Discovered exit to Factory (range 16) 6296 | -5/Archives | Identified exit to Hub_04(d) 6302 | -5/Archives | Entered Hub_04(d) 6302 | -5/Hub_04(d) | Accompanied by 2 allies 6429 | -5/Hub_04(d) | Discovered exit to Factory (range 13) 6540 | -5/Hub_04(d) | Garrison activated, responded to threat 6887 | -5/Hub_04(d) | Garrison activated, responded to threat 7081 | -5/Hub_04(d) | Network Hub disabled 7138 | -5/Hub_04(d) | Entered Factory 7138 | -4/Factory | Evolved 2 slots: Utility x2 7488 | -4/Factory | Discovered new exit (range 15) 7557 | -4/Factory | Lost 3 parts (1p1u1w) 7705 | -4/Factory | Lost 3 parts (1p1u1w) 7722 | -4/Factory | Entered Research 7722 | -3/Research | Evolved 2 slots: Power x1, Utility x1 7738 | -3/Research | Found Prototype Processor 7738 | -3/Research | Identified Spectral Analyzer 7856 | -3/Research | Discovered new exit (range 15) 7877 | -3/Research | Spotted B-86 Titan 8408 | -3/Research | Lost 4 parts (2p1n1u) 8948 | -3/Research | Discovered new exit (range 9) 8964 | -3/Research | Identified exit to Research 9015 | -3/Research | First assault squad dispatched 9030 | -3/Research | System corruption reached 10% 9066 | -3/Research | Lost 3 parts (1p1u1w) 9099 | -3/Research | Entered another Research area 9099 | -2/Research | Evolved 2 slots: Utility x2 9215 | -2/Research | Found Antimissile System 9324 | -2/Research | Repaired Arm. Leg 9380 | -2/Research | Repaired Arm. Leg 9416 | -2/Research | Repaired Quantum Rifle 9540 | -2/Research | Spotted Striker 9541 | -2/Research | Cargo convoy interrupted 9556 | -2/Research | Self-destructed Last Messages --------------- 09551_ Penetrated by Slug. 09551_ Recoil Nullifier destroyed. 09551_ Slug penetrates Wall. 09552_ K-01 Serf collects debris. 09554_ Wall collapses. 09554_ Gamma Rifle destroyed. 09554_ Penetrated by Slug. 09554_ Enh. Quantum Rifle destroyed. 09554_ Penetrated by Slug. 09554_ Gamma Rifle destroyed. 09554_ Biometal Leg destroyed. 09554_ P-80 Master destroyed. 09554_ Penetrated by Slug. 09555_ M-36 Artificer repairs P-80 Master. 09555_ R-10 Processor collects Lgt. Quantum Reactor. 09556_ Quantum Rifle blown off. 09556_ Lgt. Antimatter Reactor blown off. 09556_ Lgt. Quantum Reactor blown off. 09556_ Arm. Leg blown off. 09556_ E-15 Imp destroyed. Map ----- +----------------------------------------------------+ | ?????????????????????????????????????????????????? | | ?????????????????????????????????????????????????? | | ?????????????????????????????????????????????????? | | ?????????????????????????????????????????????????? | | ?????????????????????????????????????????????????? | | ?????????????????????????????????????????????????? | | ?????????????????????????????????????????????????? | | ?????????????????????????????????????????????????? | | ?????????????????????????????????????????????????? | | ?????????????????????????????????????????????????? | | ?????????????????????????????????????????????????? | | ?????????????????????????????????????????????????? | | ?????????????????????????????????????????????????? | | ?????????????????????????????????????????????????? | | ?????????????????????????????????????????????????? | | ?????????????????????##########??????????????????? | | ?????????????????? # #??????????????????? | | ????????????????# # #??????????????????? | | ????????????????# # #??????????????????? | | ????????????????# # #??????????????????? | | ????????????????# # #??????????????????? | | ????????????????# # h #??????????????????? | | ????????????????# # [ #??????????????????? | | ????????????????# + h== ] ???????????????????? | | ????????????????# # %%%![??????????????????#### | | ????????????????# ###h@#####??????????????? # | | ????????????????# # %p=[* #?????????????? # | | ????????????????# # m%k=[ #????????# """"" # | | ????????????????# # =R #????????# """"" # | | ????????????????# #p #????????# """"" # | | ????????????????+ /x #?????????? """"" # | | ????????????????# # #???????????? # | | ????????????????# # #?????????????? # | | ????????????????# # #????????########+## | | ????????????????# # #????????# | | ????????????????#k ##########????????# | | ????????????????# #?????????????????# | | ????????????????# H #??????##########?# | | ????????????????# #??????# #?# | | ????????????????# #??????# #?# | | ?????#######+#### ######## "" #?# | | ????? # """ #?# """ | | ???? # "R #?# """ | | ???? # """ ### """ | | ???? + """ + """ | | ???????#############+### # #### """ | | ?????????# # # #??# """ | | ?????????# !# ##########??# """ | | ?????????# # #????# | | ?????????# # #????# | +----------------------------------------------------+ Best States ------------- Heat Dissipation 102 Energy Generation 41 Energy Capacity 350 Matter Stores 300 Matter Capacity 300 Sight Range 16 Robot Scan Range 16 Terrain Scan Range 20 Terrain Scan Density 10 EM Shielding 2 Armor Coverage 225 Resistance: KI 25 Propulsion Shielding 66 Point Defense Rating 240 Weapon Cycling 20 Evasion (%) 55 Targeting Accuracy 30 Target Analysis 8 Recoil Reduction 6 Energy Filtering 30 Particle Charging 20 Kinecelleration 40 Offensive Hacking 24 Item Schematics ----------------- None Robot Schematics ------------------ None Fabricated ------------ Nothing Alien Tech Used ----------------- None Achievements -------------- None Challenges ------------ None Game ------ Seed SiegeIonicMediator Manual? 0 Play Time 01:34:53 Cumulative 211.6 hours Start 2024.02.22 @ 15:50:56 End 2024.02.22 @ 17:29:02 Sessions 1 Manual Loads 0 Difficulty Rogue Special Mode None Game No. 123 Rogue 123 Adventurer 0 Explorer 0 Win Type - Total 2 Types 2/0/0/0/0/0/0/0/0 Lore% 50 Gallery% 70 Achievement% 55 Wizard Run 0 Options --------- ASCII 0 Keyboard 1 Movement Numpad Keybinds 0 Fullscreen 1 Font 24/Smallcaps Map View 76x50 Tactical HUD 1 Map Filters NONE Filters NONE Steam 1 RUN: a65b5014-caa6-46d8-a76f-02b541d47dfd